[Event "*** SCC Grand Prix: Titled Tuesday Blitz"]
[Site "Chess.com"]
[Date "2020.07.14"]
[Round "5"]
[White "Alexsur1981"]
[Black "IMHansNiemann"]
[Result "0-1"]
[WhiteElo "2533"]
[BlackElo "2857"]
[TimeControl "180+1"]
[EndTime "10:56:47 PDT"]
[Termination "IMHansNiemann won on time"]

1. e4 {[%clk 0:02:54]} 1... e6 {[%clk 0:02:57.5]} 2. d4 {[%clk 0:02:53.3]} 2...
d5 {[%clk 0:02:57.9]} 3. Nd2 {[%clk 0:02:52.1]} 3... c5 {[%clk 0:02:57.2]} 4.
Ngf3 {[%clk 0:02:51.7]} 4... cxd4 {[%clk 0:02:57.3]} 5. exd5 {[%clk 0:02:52.1]}
5... Qxd5 {[%clk 0:02:57.1]} 6. Bc4 {[%clk 0:02:52.7]} 6... Qd7 {[%clk
0:02:57.3]} 7. Qe2 {[%clk 0:02:52.8]} 7... Nc6 {[%clk 0:02:56.8]} 8. Nb3 {[%clk
0:02:53.2]} 8... a6 {[%clk 0:02:56.1]} 9. Bf4 {[%clk 0:02:51]} 9... Bb4+ {[%clk
0:02:53.3]} 10. Bd2 {[%clk 0:02:50.6]} 10... Bxd2+ {[%clk 0:02:51.1]} 11. Qxd2
{[%clk 0:02:51]} 11... e5 {[%clk 0:02:48.4]} 12. O-O-O {[%clk 0:02:50.8]} 12...
Nge7 {[%clk 0:02:47.1]} 13. Rhe1 {[%clk 0:02:37.8]} 13... f6 {[%clk 0:02:38.6]}
14. Nc5 {[%clk 0:01:56.3]} 14... Qd6 {[%clk 0:02:31.9]} 15. Ne4 {[%clk
0:01:53.4]} 15... Qc7 {[%clk 0:02:31.7]} 16. a3 {[%clk 0:01:43]} 16... Bf5
{[%clk 0:02:27.8]} 17. Ng3 {[%clk 0:01:34.5]} 17... Bg6 {[%clk 0:02:26.6]} 18.
Be6 {[%clk 0:01:26.1]} 18... Qd6 {[%clk 0:02:20]} 19. Bb3 {[%clk 0:01:25.4]}
19... O-O-O {[%clk 0:02:19.3]} 20. Nh4 {[%clk 0:01:25.1]} 20... Kb8 {[%clk
0:02:06.7]} 21. Kb1 {[%clk 0:01:24]} 21... Rc8 {[%clk 0:02:05.1]} 22. Ne4 {[%clk
0:01:09.7]} 22... Bxe4 {[%clk 0:02:02.8]} 23. Rxe4 {[%clk 0:01:10.6]} 23... f5
{[%clk 0:01:58.5]} 24. Ree1 {[%clk 0:01:07.6]} 24... Rhd8 {[%clk 0:01:56.4]} 25.
f3 {[%clk 0:01:04.6]} 25... Qf6 {[%clk 0:01:52.6]} 26. g3 {[%clk 0:01:04.7]}
26... Nd5 {[%clk 0:01:50.5]} 27. Bxd5 {[%clk 0:01:03.1]} 27... Rxd5 {[%clk
0:01:51.4]} 28. Qd3 {[%clk 0:01:00.8]} 28... g6 {[%clk 0:01:49.8]} 29. Ng2
{[%clk 0:00:41.3]} 29... Na5 {[%clk 0:01:46.3]} 30. c3 {[%clk 0:00:19.9]} 30...
Qb6 {[%clk 0:01:42.5]} 31. cxd4 {[%clk 0:00:18.1]} 31... Rxd4 {[%clk 0:01:41.4]}
32. Qe2 {[%clk 0:00:18]} 32... Nc4 {[%clk 0:01:39.7]} 33. Ka2 {[%clk 0:00:16.6]}
33... Rcd8 {[%clk 0:01:37.2]} 34. Rxd4 {[%clk 0:00:14.7]} 34... Rxd4 {[%clk
0:01:38.1]} 35. Ne3 {[%clk 0:00:13.8]} 35... Rd2 {[%clk 0:01:34.5]} 36. Nxc4
{[%clk 0:00:13.7]} 36... Rxe2 {[%clk 0:01:34.5]} 37. Rxe2 {[%clk 0:00:14.6]}
37... Qe6 {[%clk 0:01:30.5]} 38. b3 {[%clk 0:00:14.4]} 38... e4 {[%clk
0:01:30.8]} 39. fxe4 {[%clk 0:00:14.8]} 39... fxe4 {[%clk 0:01:31.7]} 40. a4
{[%clk 0:00:09.8]} 40... Qd5 {[%clk 0:01:29.9]} 41. Rd2 {[%clk 0:00:08.5]} 41...
Qc5 {[%clk 0:01:30.3]} 42. a5 {[%clk 0:00:08.1]} 42... Kc7 {[%clk 0:01:23.1]}
43. Re2 {[%clk 0:00:08.4]} 43... Qd4 {[%clk 0:01:21.6]} 44. Rd2 {[%clk
0:00:08.9]} 44... Qg1 {[%clk 0:01:19.1]} 45. Re2 {[%clk 0:00:09]} 45... Qf1
{[%clk 0:01:16.4]} 46. Rc2 {[%clk 0:00:06.4]} 46... Kd7 {[%clk 0:01:14]} 47. Kb2
{[%clk 0:00:05.9]} 47... Ke6 {[%clk 0:01:13]} 48. Rd2 {[%clk 0:00:05.3]} 48...
Qf3 {[%clk 0:01:10.7]} 49. Rd8 {[%clk 0:00:04]} 49... Ke7 {[%clk 0:01:09.5]} 50.
Rd5 {[%clk 0:00:03.4]} 50... Qf2+ {[%clk 0:01:07.5]} 51. Rd2 {[%clk 0:00:03.4]}
51... Qe1 {[%clk 0:01:06.3]} 52. Rd5 {[%clk 0:00:03.5]} 52... Ke6 {[%clk
0:01:05.3]} 53. Re5+ {[%clk 0:00:03.6]} 53... Kf6 {[%clk 0:01:05.7]} 54. Kc2
{[%clk 0:00:02.8]} 54... Qf2+ {[%clk 0:01:05.4]} 55. Kc3 {[%clk 0:00:02.9]}
55... Qxh2 {[%clk 0:01:04.6]} 56. Kd4 {[%clk 0:00:03]} 56... Qxg3 {[%clk
0:01:04.1]} 57. Rxe4 {[%clk 0:00:03.9]} 57... h5 {[%clk 0:01:03.5]} 58. Ne3
{[%clk 0:00:04]} 58... h4 {[%clk 0:01:03.1]} 59. Nd5+ {[%clk 0:00:04.5]} 59...
Kg7 {[%clk 0:01:03.5]} 60. Re7+ {[%clk 0:00:04.8]} 60... Kh6 {[%clk 0:01:04.1]}
61. Nf6 {[%clk 0:00:04.3]} 61... Qd6+ {[%clk 0:01:02]} 62. Nd5 {[%clk
0:00:04.9]} 62... h3 {[%clk 0:01:00.8]} 63. Re4 {[%clk 0:00:04.6]} 63... h2
{[%clk 0:01:00.2]} 64. Rh4+ {[%clk 0:00:04.8]} 64... Kg7 {[%clk 0:01:00.1]} 65.
Rh8 {[%clk 0:00:05.7]} 65... Kxh8 {[%clk 0:00:59.7]} 66. Ke4 {[%clk 0:00:06]}
66... h1=Q+ {[%clk 0:00:59.3]} 67. Ke3 {[%clk 0:00:05.3]} 67... Qe5+ {[%clk
0:00:59.1]} 0-1

[Event "*** SCC Grand Prix: Titled Tuesday Blitz"]
[Site "Chess.com"]
[Date "2020.07.14"]
[Round "5"]
[White "whodee11"]
[Black "esrosenberg"]
[Result "1-0"]
[WhiteElo "2400"]
[BlackElo "2212"]
[TimeControl "180+1"]
[EndTime "10:56:49 PDT"]
[Termination "whodee11 won by checkmate"]

1. e4 {[%clk 0:03:00.9]} 1... e5 {[%clk 0:02:59.7]} 2. Bc4 {[%clk 0:03:00.3]}
2... Nf6 {[%clk 0:02:59.9]} 3. d3 {[%clk 0:03:00]} 3... Nc6 {[%clk 0:02:57.8]}
4. Nc3 {[%clk 0:02:59.6]} 4... Bc5 {[%clk 0:02:57]} 5. f4 {[%clk 0:02:59.2]}
5... d6 {[%clk 0:02:44]} 6. f5 {[%clk 0:02:59]} 6... d5 {[%clk 0:02:00.2]} 7.
Nxd5 {[%clk 0:02:52.5]} 7... Nxd5 {[%clk 0:01:59.1]} 8. Bxd5 {[%clk 0:02:53.4]}
8... Bxg1 {[%clk 0:01:58.6]} 9. Rxg1 {[%clk 0:02:38]} 9... Qh4+ {[%clk
0:01:58.6]} 10. Kf1 {[%clk 0:02:37.6]} 10... Qxh2 {[%clk 0:01:53.1]} 11. c3
{[%clk 0:02:35.5]} 11... Ne7 {[%clk 0:01:27.8]} 12. Bb3 {[%clk 0:02:30.5]} 12...
g6 {[%clk 0:01:20.2]} 13. f6 {[%clk 0:02:03.4]} 13... Nc6 {[%clk 0:00:43]} 14.
Qf3 {[%clk 0:02:01.3]} 14... h5 {[%clk 0:00:39.5]} 15. Bg5 {[%clk 0:01:49.8]}
15... Bg4 {[%clk 0:00:37.7]} 16. Qe3 {[%clk 0:01:44.6]} 16... O-O-O {[%clk
0:00:22.9]} 17. Bd5 {[%clk 0:01:27.6]} 17... Kb8 {[%clk 0:00:12.3]} 18. Kf2
{[%clk 0:01:26]} 18... h4 {[%clk 0:00:10.3]} 19. Rh1 {[%clk 0:01:24.9]} 19...
Qg3+ {[%clk 0:00:10.6]} 20. Qxg3 {[%clk 0:01:25.4]} 20... hxg3+ {[%clk
0:00:11.5]} 21. Kxg3 {[%clk 0:01:26.3]} 21... Be6 {[%clk 0:00:10.9]} 22. Rxh8
{[%clk 0:01:22.1]} 22... Rxh8 {[%clk 0:00:10.8]} 23. Bxe6 {[%clk 0:01:22.1]}
23... fxe6 {[%clk 0:00:11.1]} 24. Rf1 {[%clk 0:01:20.2]} 24... Nd8 {[%clk
0:00:11.3]} 25. d4 {[%clk 0:01:11.9]} 25... Nf7 {[%clk 0:00:10.5]} 26. Be3
{[%clk 0:01:11.7]} 26... exd4 {[%clk 0:00:06.7]} 27. cxd4 {[%clk 0:01:12.6]}
27... Kc8 {[%clk 0:00:04.2]} 28. e5 {[%clk 0:01:12.1]} 28... Kd7 {[%clk
0:00:04.8]} 29. Rf4 {[%clk 0:01:11.9]} 29... Kc6 {[%clk 0:00:04.7]} 30. Rh4
{[%clk 0:01:05.7]} 30... Rg8 {[%clk 0:00:03.9]} 31. Rh7 {[%clk 0:01:04.9]} 31...
Nd8 {[%clk 0:00:02.1]} 32. Rg7 {[%clk 0:01:00.7]} 32... Rf8 {[%clk 0:00:01.7]}
33. Rxg6 {[%clk 0:01:00.6]} 33... Kd5 {[%clk 0:00:02.2]} 34. Kf3 {[%clk
0:00:58.9]} 34... c5 {[%clk 0:00:02]} 35. Bh6 {[%clk 0:00:47.5]} 35... Rf7
{[%clk 0:00:01.4]} 36. Rg8 {[%clk 0:00:47.9]} 36... Nc6 {[%clk 0:00:01.7]} 37.
Rg7 {[%clk 0:00:44.1]} 37... Rf8 {[%clk 0:00:01.9]} 38. Rd7+ {[%clk 0:00:42.7]}
38... Kc4 {[%clk 0:00:02.4]} 39. Bxf8 {[%clk 0:00:39]} 39... Nxd4+ {[%clk
0:00:02.8]} 40. Rxd4+ {[%clk 0:00:38.4]} 40... cxd4 {[%clk 0:00:02.9]} 41. f7
{[%clk 0:00:37.9]} 41... d3 {[%clk 0:00:03.4]} 42. Bh6 {[%clk 0:00:37.8]} 42...
Kd5 {[%clk 0:00:03.6]} 43. f8=Q {[%clk 0:00:36.8]} 43... Kxe5 {[%clk 0:00:04.5]}
44. Qf4+ {[%clk 0:00:35.5]} 44... Kd5 {[%clk 0:00:05.2]} 45. Qe4+ {[%clk
0:00:35.4]} 45... Kc5 {[%clk 0:00:06.1]} 46. Qxd3 {[%clk 0:00:35.1]} 46... b5
{[%clk 0:00:06.3]} 47. Bf8+ {[%clk 0:00:34.3]} 47... Kc6 {[%clk 0:00:06.5]} 48.
Qd6+ {[%clk 0:00:34.3]} 48... Kb7 {[%clk 0:00:07.2]} 49. Ke4 {[%clk 0:00:33.3]}
49... a5 {[%clk 0:00:08.1]} 50. Kd4 {[%clk 0:00:33.2]} 50... a4 {[%clk 0:00:09]}
51. Kc5 {[%clk 0:00:33.3]} 51... a3 {[%clk 0:00:09.9]} 52. bxa3 {[%clk
0:00:33.4]} 52... b4 {[%clk 0:00:10.4]} 53. axb4 {[%clk 0:00:33.2]} 53... Ka8
{[%clk 0:00:10.2]} 54. Qd7 {[%clk 0:00:31.2]} 54... Kb8 {[%clk 0:00:10.4]} 55.
Kb6 {[%clk 0:00:32.1]} 55... Ka8 {[%clk 0:00:10.9]} 56. Qd8# {[%clk 0:00:33]}
1-0

[Event "*** SCC Grand Prix: Titled Tuesday Blitz"]
[Site "Chess.com"]
[Date "2020.07.14"]
[Round "5"]
[White "teacher4chess"]
[Black "The_Machine04"]
[Result "0-1"]
[WhiteElo "2017"]
[BlackElo "2292"]
[TimeControl "180+1"]
[EndTime "10:56:54 PDT"]
[Termination "The_Machine04 won by checkmate"]

1. d4 {[%clk 0:03:00.5]} 1... d6 {[%clk 0:02:57.7]} 2. Nf3 {[%clk 0:02:58.7]}
2... Nf6 {[%clk 0:02:57.3]} 3. Bg5 {[%clk 0:02:58.4]} 3... Nbd7 {[%clk
0:02:49.3]} 4. Nbd2 {[%clk 0:02:55.8]} 4... g6 {[%clk 0:02:45.3]} 5. e4 {[%clk
0:02:55.2]} 5... Bg7 {[%clk 0:02:42.4]} 6. Bd3 {[%clk 0:02:54.9]} 6... e5 {[%clk
0:02:21.8]} 7. c3 {[%clk 0:02:23.4]} 7... h6 {[%clk 0:02:14]} 8. Bh4 {[%clk
0:02:20.9]} 8... O-O {[%clk 0:02:10]} 9. O-O {[%clk 0:02:08.3]} 9... exd4 {[%clk
0:02:01.6]} 10. cxd4 {[%clk 0:02:05.5]} 10... g5 {[%clk 0:01:51.2]} 11. Bg3
{[%clk 0:02:05]} 11... Nh5 {[%clk 0:01:48.6]} 12. Rc1 {[%clk 0:01:47.5]} 12...
Nxg3 {[%clk 0:01:47.5]} 13. hxg3 {[%clk 0:01:46.7]} 13... c6 {[%clk 0:01:45.8]}
14. Bb1 {[%clk 0:01:35.4]} 14... Re8 {[%clk 0:01:41.7]} 15. Qc2 {[%clk
0:01:15.5]} 15... Nf8 {[%clk 0:01:39.3]} 16. Rfe1 {[%clk 0:01:07.7]} 16... Bg4
{[%clk 0:01:38.3]} 17. e5 {[%clk 0:00:47]} 17... d5 {[%clk 0:01:09.3]} 18. Nh2
{[%clk 0:00:44.2]} 18... Bh5 {[%clk 0:01:08.1]} 19. Qb3 {[%clk 0:00:44.3]} 19...
Qd7 {[%clk 0:01:03.2]} 20. g4 {[%clk 0:00:35.1]} 20... Bg6 {[%clk 0:01:02.4]}
21. f3 {[%clk 0:00:27.2]} 21... Bxb1 {[%clk 0:00:59.2]} 22. Nxb1 {[%clk
0:00:23.7]} 22... Ne6 {[%clk 0:00:59.7]} 23. Rcd1 {[%clk 0:00:18.4]} 23... Qc7
{[%clk 0:00:58.5]} 24. Nc3 {[%clk 0:00:17.1]} 24... Qb6 {[%clk 0:00:58.5]} 25.
Qxb6 {[%clk 0:00:13.3]} 25... axb6 {[%clk 0:00:59.3]} 26. a3 {[%clk 0:00:13.7]}
26... b5 {[%clk 0:00:59]} 27. Nf1 {[%clk 0:00:11.9]} 27... f6 {[%clk 0:00:53.1]}
28. Ng3 {[%clk 0:00:09.5]} 28... fxe5 {[%clk 0:00:46.8]} 29. dxe5 {[%clk
0:00:08.6]} 29... Nf4 {[%clk 0:00:46.5]} 30. Nf5 {[%clk 0:00:08.2]} 30... Rxe5
{[%clk 0:00:37.7]} 31. Rxe5 {[%clk 0:00:05.3]} 31... Bxe5 {[%clk 0:00:38.6]} 32.
Nxh6+ {[%clk 0:00:05.6]} 32... Kg7 {[%clk 0:00:34.2]} 33. Nf5+ {[%clk
0:00:06.2]} 33... Kf6 {[%clk 0:00:34.4]} 34. Kf2 {[%clk 0:00:05.5]} 34... Bxc3
{[%clk 0:00:33.2]} 35. bxc3 {[%clk 0:00:05.6]} 35... Rxa3 {[%clk 0:00:33.8]} 36.
Nd6 {[%clk 0:00:03.8]} 36... Ra2+ {[%clk 0:00:29]} 37. Ke3 {[%clk 0:00:03]}
37... Ke5 {[%clk 0:00:22.5]} 38. Nf7+ {[%clk 0:00:02.7]} 38... Kf6 {[%clk
0:00:21.2]} 39. Nd8 {[%clk 0:00:03]} 39... c5 {[%clk 0:00:14.2]} 40. g3 {[%clk
0:00:02.5]} 40... Re2# {[%clk 0:00:13.4]} 0-1

[Event "*** SCC Grand Prix: Titled Tuesday Blitz"]
[Site "Chess.com"]
[Date "2020.07.14"]
[Round "5"]
[White "maximnovik"]
[Black "ChronicUnhappiness"]
[Result "0-1"]
[WhiteElo "2497"]
[BlackElo "2362"]
[TimeControl "180+1"]
[EndTime "10:56:59 PDT"]
[Termination "ChronicUnhappiness won on time"]

1. d4 {[%clk 0:02:05.2]} 1... d5 {[%clk 0:02:58]} 2. c4 {[%clk 0:02:04.8]} 2...
e6 {[%clk 0:02:57.7]} 3. Nc3 {[%clk 0:02:05.2]} 3... Bb4 {[%clk 0:02:57.2]} 4.
Qa4+ {[%clk 0:02:03.6]} 4... Nc6 {[%clk 0:02:56.7]} 5. Bf4 {[%clk 0:02:02]} 5...
Nf6 {[%clk 0:02:44.7]} 6. e3 {[%clk 0:02:01.9]} 6... O-O {[%clk 0:02:43.7]} 7.
Nf3 {[%clk 0:02:01.8]} 7... Ne4 {[%clk 0:02:41.1]} 8. Rc1 {[%clk 0:02:00.9]}
8... g5 {[%clk 0:02:30.2]} 9. Bg3 {[%clk 0:01:58.5]} 9... h5 {[%clk 0:02:29.9]}
10. h4 {[%clk 0:01:47.6]} 10... g4 {[%clk 0:02:27.3]} 11. Nd2 {[%clk 0:01:45.3]}
11... Nxg3 {[%clk 0:01:35.8]} 12. fxg3 {[%clk 0:01:45.2]} 12... Bd6 {[%clk
0:01:35]} 13. Kf2 {[%clk 0:01:44.6]} 13... Qf6+ {[%clk 0:01:34]} 14. Kg1 {[%clk
0:01:34.1]} 14... Bxg3 {[%clk 0:01:33.4]} 15. Nd1 {[%clk 0:01:33.5]} 15... Nxd4
{[%clk 0:01:31.8]} 16. cxd5 {[%clk 0:01:28.5]} 16... Nf5 {[%clk 0:01:18.8]} 17.
Ne4 {[%clk 0:01:21.7]} 17... Qe5 {[%clk 0:01:04.1]} 18. Nxg3 {[%clk 0:00:57.2]}
18... Qxg3 {[%clk 0:00:53.3]} 19. Qf4 {[%clk 0:00:54.2]} 19... Qxf4 {[%clk
0:00:45.8]} 20. exf4 {[%clk 0:00:53.9]} 20... exd5 {[%clk 0:00:46.5]} 21. Rxc7
{[%clk 0:00:54.2]} 21... Be6 {[%clk 0:00:41.8]} 22. Bd3 {[%clk 0:00:54.6]} 22...
Ng3 {[%clk 0:00:40.2]} 23. Rh2 {[%clk 0:00:53.5]} 23... Rfc8 {[%clk 0:00:39.9]}
24. Rxc8+ {[%clk 0:00:51.2]} 24... Rxc8 {[%clk 0:00:40.8]} 25. Kf2 {[%clk
0:00:51.5]} 25... Ne4+ {[%clk 0:00:36.1]} 26. Bxe4 {[%clk 0:00:50.5]} 26... dxe4
{[%clk 0:00:37]} 27. Ne3 {[%clk 0:00:50.6]} 27... f5 {[%clk 0:00:35.5]} 28. Rh1
{[%clk 0:00:49.5]} 28... Rd8 {[%clk 0:00:34.1]} 29. Rd1 {[%clk 0:00:41.8]} 29...
Rxd1 {[%clk 0:00:29.8]} 30. Nxd1 {[%clk 0:00:42]} 30... Bxa2 {[%clk 0:00:30.7]}
31. Ke3 {[%clk 0:00:41.6]} 31... Kf7 {[%clk 0:00:29.5]} 32. Kd4 {[%clk
0:00:41.5]} 32... Ke6 {[%clk 0:00:28.3]} 33. Ne3 {[%clk 0:00:40.1]} 33... b6
{[%clk 0:00:24.4]} 34. Nf1 {[%clk 0:00:38.5]} 34... a5 {[%clk 0:00:21.6]} 35.
Ng3 {[%clk 0:00:38.4]} 35... a4 {[%clk 0:00:21.1]} 36. Nxh5 {[%clk 0:00:38.1]}
36... b5 {[%clk 0:00:20.8]} 37. Ng3 {[%clk 0:00:34.8]} 37... b4 {[%clk
0:00:20.4]} 38. Kc5 {[%clk 0:00:14.6]} 38... a3 {[%clk 0:00:18.1]} 39. bxa3
{[%clk 0:00:14.6]} 39... b3 {[%clk 0:00:18.4]} 40. Ne2 {[%clk 0:00:12.4]} 40...
b2 {[%clk 0:00:18.1]} 41. Nc3 {[%clk 0:00:12.3]} 41... e3 {[%clk 0:00:13.3]} 42.
Kd4 {[%clk 0:00:12]} 42... e2 {[%clk 0:00:12.3]} 43. Nxe2 {[%clk 0:00:11.7]}
43... b1=Q {[%clk 0:00:12.1]} 44. Ke3 {[%clk 0:00:12]} 44... Qb6+ {[%clk
0:00:11.3]} 45. Nd4+ {[%clk 0:00:12]} 45... Kd5 {[%clk 0:00:10.6]} 46. Kf2
{[%clk 0:00:12]} 46... Qxd4+ {[%clk 0:00:11.5]} 47. Kg3 {[%clk 0:00:12.1]} 47...
Qe3+ {[%clk 0:00:11.1]} 48. Kh2 {[%clk 0:00:11.2]} 48... Ke4 {[%clk 0:00:11]}
49. h5 {[%clk 0:00:10.3]} 49... Kxf4 {[%clk 0:00:11.1]} 0-1

[Event "*** SCC Grand Prix: Titled Tuesday Blitz"]
[Site "Chess.com"]
[Date "2020.07.14"]
[Round "5"]
[White "bazar-wokzal"]
[Black "Matibar"]
[Result "0-1"]
[WhiteElo "2439"]
[BlackElo "2685"]
[TimeControl "180+1"]
[EndTime "10:57:00 PDT"]
[Termination "Matibar won by resignation"]

1. e4 {[%clk 0:03:00.9]} 1... e6 {[%clk 0:02:56.9]} 2. d4 {[%clk 0:02:55.1]}
2... d5 {[%clk 0:02:57.4]} 3. exd5 {[%clk 0:02:55.5]} 3... exd5 {[%clk
0:02:58.3]} 4. Nf3 {[%clk 0:02:55.9]} 4... Bd6 {[%clk 0:02:54.5]} 5. c4 {[%clk
0:02:56.2]} 5... c6 {[%clk 0:02:50.4]} 6. Bd3 {[%clk 0:02:56.2]} 6... dxc4
{[%clk 0:02:49.5]} 7. Bxc4 {[%clk 0:02:55.9]} 7... Nf6 {[%clk 0:02:48.4]} 8. O-O
{[%clk 0:02:55.5]} 8... O-O {[%clk 0:02:47.3]} 9. Nc3 {[%clk 0:02:55.8]} 9...
Nbd7 {[%clk 0:02:41]} 10. Bg5 {[%clk 0:02:54.7]} 10... Nb6 {[%clk 0:01:51.3]}
11. Bb3 {[%clk 0:02:54.1]} 11... Bg4 {[%clk 0:01:51.8]} 12. h3 {[%clk 0:02:54]}
12... Bh5 {[%clk 0:01:52]} 13. g4 {[%clk 0:02:53.9]} 13... Bg6 {[%clk
0:01:52.1]} 14. Ne5 {[%clk 0:02:54.2]} 14... Bxe5 {[%clk 0:01:31.7]} 15. dxe5
{[%clk 0:02:53.5]} 15... Qxd1 {[%clk 0:01:32.6]} 16. Raxd1 {[%clk 0:02:52.7]}
16... Ne4 {[%clk 0:01:33.5]} 17. Nxe4 {[%clk 0:02:26.4]} 17... Bxe4 {[%clk
0:01:32.3]} 18. e6 {[%clk 0:02:20.9]} 18... Bd5 {[%clk 0:01:20.2]} 19. exf7+
{[%clk 0:01:56.6]} 19... Rxf7 {[%clk 0:01:20]} 20. f4 {[%clk 0:01:52.5]} 20...
Bxb3 {[%clk 0:01:11.1]} 21. axb3 {[%clk 0:01:52.3]} 21... h6 {[%clk 0:01:12]}
22. Bh4 {[%clk 0:01:52.1]} 22... Nd5 {[%clk 0:01:12.6]} 23. Rd4 {[%clk
0:01:34.2]} 23... Re8 {[%clk 0:01:10.9]} 24. f5 {[%clk 0:01:31.7]} 24... Re3
{[%clk 0:01:07.1]} 25. Kh2 {[%clk 0:01:11.7]} 25... Rxb3 {[%clk 0:01:06.5]} 26.
Rf2 {[%clk 0:01:11.2]} 26... g5 {[%clk 0:00:47.3]} 27. Bg3 {[%clk 0:00:57.5]}
27... Re7 {[%clk 0:00:47]} 28. Bd6 {[%clk 0:00:47.8]} 28... Ree3 {[%clk
0:00:45.5]} 29. f6 {[%clk 0:00:45.4]} 29... Kf7 {[%clk 0:00:45.1]} 30. Kg1
{[%clk 0:00:36.6]} 30... Re6 {[%clk 0:00:41.7]} 31. Be7 {[%clk 0:00:29]} 31...
Rxh3 {[%clk 0:00:37.9]} 32. Rfd2 {[%clk 0:00:20.1]} 32... Rb3 {[%clk 0:00:32.3]}
33. Kf2 {[%clk 0:00:17]} 33... Nxf6 {[%clk 0:00:30.1]} 34. Bxf6 {[%clk
0:00:16.3]} 34... Rxf6+ {[%clk 0:00:29.8]} 35. Ke2 {[%clk 0:00:15.9]} 35... Kg6
{[%clk 0:00:25.9]} 36. Rd7 {[%clk 0:00:14.3]} 36... a5 {[%clk 0:00:25.4]} 37.
Rc7 {[%clk 0:00:13.9]} 37... Re6+ {[%clk 0:00:24.3]} 38. Kf2 {[%clk 0:00:13.9]}
38... a4 {[%clk 0:00:22.2]} 39. Rdd7 {[%clk 0:00:13.1]} 39... Rxb2+ {[%clk
0:00:22.4]} 40. Kf3 {[%clk 0:00:13.7]} 40... Rb3+ {[%clk 0:00:22.3]} 41. Kf2
{[%clk 0:00:14.1]} 41... Kf6 {[%clk 0:00:22.3]} 42. Rxb7 {[%clk 0:00:09.6]}
42... Rxb7 {[%clk 0:00:21.5]} 43. Rxb7 {[%clk 0:00:10]} 43... Re4 {[%clk
0:00:20.3]} 44. Kg3 {[%clk 0:00:09.2]} 44... Re3+ {[%clk 0:00:16.8]} 45. Kf2
{[%clk 0:00:09.5]} 45... Rb3 {[%clk 0:00:17]} 46. Ra7 {[%clk 0:00:08.6]} 46...
a3 {[%clk 0:00:17.1]} 47. Ra6 {[%clk 0:00:09.1]} 47... Rc3 {[%clk 0:00:17.3]}
48. Ke2 {[%clk 0:00:09]} 48... Ke5 {[%clk 0:00:17.6]} 49. Kd2 {[%clk 0:00:09.1]}
49... Rc4 {[%clk 0:00:18.1]} 50. Rxa3 {[%clk 0:00:08.5]} 50... Rxg4 {[%clk
0:00:18.2]} 51. Ra6 {[%clk 0:00:08.6]} 51... Kd5 {[%clk 0:00:18.1]} 52. Ke3
{[%clk 0:00:07.9]} 52... Rg3+ {[%clk 0:00:17.4]} 53. Kf2 {[%clk 0:00:08]} 53...
Rb3 {[%clk 0:00:17.9]} 54. Ra3 {[%clk 0:00:07.5]} 54... Rxa3 {[%clk 0:00:17.5]}
0-1

[Event "*** SCC Grand Prix: Titled Tuesday Blitz"]
[Site "Chess.com"]
[Date "2020.07.14"]
[Round "5"]
[White "Carnivoras"]
[Black "Batica1984"]
[Result "0-1"]
[WhiteElo "2606"]
[BlackElo "2871"]
[TimeControl "180+1"]
[EndTime "10:57:05 PDT"]
[Termination "Batica1984 won by resignation"]

1. d4 {[%clk 0:03:00.9]} 1... Nf6 {[%clk 0:02:58.6]} 2. c4 {[%clk 0:03:01.5]}
2... c5 {[%clk 0:02:55.6]} 3. d5 {[%clk 0:03:01.3]} 3... b5 {[%clk 0:02:53.5]}
4. cxb5 {[%clk 0:03:00.6]} 4... a6 {[%clk 0:02:53.3]} 5. bxa6 {[%clk 0:03:01.2]}
5... g6 {[%clk 0:02:51.5]} 6. Nc3 {[%clk 0:03:01.7]} 6... Bxa6 {[%clk
0:02:46.7]} 7. e4 {[%clk 0:03:01.6]} 7... Bxf1 {[%clk 0:02:37.7]} 8. Kxf1 {[%clk
0:03:02.5]} 8... d6 {[%clk 0:02:37.3]} 9. g3 {[%clk 0:03:02.3]} 9... Bg7 {[%clk
0:02:37.9]} 10. Kg2 {[%clk 0:03:02.3]} 10... O-O {[%clk 0:02:38.6]} 11. Nf3
{[%clk 0:03:02.9]} 11... Qb6 {[%clk 0:02:36.4]} 12. Re1 {[%clk 0:03:00.7]} 12...
Nbd7 {[%clk 0:02:17.6]} 13. h3 {[%clk 0:02:59.5]} 13... Rfb8 {[%clk 0:02:01.3]}
14. Qc2 {[%clk 0:02:56.2]} 14... Ne8 {[%clk 0:01:56.8]} 15. Re2 {[%clk
0:02:42.8]} 15... Nc7 {[%clk 0:01:55.5]} 16. Bg5 {[%clk 0:02:41.5]} 16... h6
{[%clk 0:01:45.4]} 17. Bf4 {[%clk 0:02:12.2]} 17... Qa6 {[%clk 0:01:38.2]} 18.
Rae1 {[%clk 0:02:02.8]} 18... Nb5 {[%clk 0:01:32.5]} 19. Nxb5 {[%clk 0:01:43.1]}
19... Qxb5 {[%clk 0:01:27.4]} 20. b3 {[%clk 0:01:42.9]} 20... Nb6 {[%clk
0:01:21.2]} 21. Nd2 {[%clk 0:01:33.9]} 21... Qb4 {[%clk 0:01:18]} 22. Nc4 {[%clk
0:01:28.5]} 22... Nxc4 {[%clk 0:01:16.7]} 23. Qxc4 {[%clk 0:01:28.3]} 23... Qxc4
{[%clk 0:01:16.5]} 24. bxc4 {[%clk 0:01:29.2]} 24... Ra4 {[%clk 0:01:15.2]} 25.
Rc1 {[%clk 0:01:25.3]} 25... g5 {[%clk 0:01:06.8]} 26. Be3 {[%clk 0:01:20.9]}
26... Rbb4 {[%clk 0:00:56.8]} 27. Rec2 {[%clk 0:01:20.3]} 27... Bf6 {[%clk
0:00:37.5]} 28. Kf3 {[%clk 0:01:14.3]} 28... Kg7 {[%clk 0:00:37.4]} 29. Bd2
{[%clk 0:01:03.8]} 29... Rb7 {[%clk 0:00:36.2]} 30. Kg2 {[%clk 0:00:58.5]} 30...
Kg6 {[%clk 0:00:34.5]} 31. f4 {[%clk 0:00:53.9]} 31... Bd4 {[%clk 0:00:34.2]}
32. e5 {[%clk 0:00:38.2]} 32... dxe5 {[%clk 0:00:31.1]} 33. fxe5 {[%clk
0:00:38.5]} 33... Bxe5 {[%clk 0:00:30.6]} 34. Be3 {[%clk 0:00:38]} 34... Bd6
{[%clk 0:00:30.2]} 35. Re1 {[%clk 0:00:33.2]} 35... f6 {[%clk 0:00:28.8]} 36.
Bf2 {[%clk 0:00:31.1]} 36... h5 {[%clk 0:00:28.4]} 37. g4 {[%clk 0:00:30.8]}
37... h4 {[%clk 0:00:27.3]} 38. Bg1 {[%clk 0:00:30.2]} 38... Rbb4 {[%clk
0:00:26.9]} 39. Re4 {[%clk 0:00:29.6]} 39... Ra3 {[%clk 0:00:25.9]} 40. Bh2
{[%clk 0:00:28.8]} 40... Rba4 {[%clk 0:00:20.6]} 41. Bxd6 {[%clk 0:00:23.6]}
41... exd6 {[%clk 0:00:21.5]} 42. Ree2 {[%clk 0:00:24.1]} 42... Rg3+ {[%clk
0:00:21.5]} 43. Kf1 {[%clk 0:00:18.8]} 43... Rxh3 {[%clk 0:00:21.3]} 44. Re6
{[%clk 0:00:18.9]} 44... Rf3+ {[%clk 0:00:20.6]} 45. Kg2 {[%clk 0:00:15.5]}
45... Rg3+ {[%clk 0:00:20.2]} 46. Kh2 {[%clk 0:00:16.1]} 46... Rxg4 {[%clk
0:00:20.8]} 47. Rxd6 {[%clk 0:00:16.8]} 47... Rgxc4 {[%clk 0:00:20.9]} 48. Rb2
{[%clk 0:00:15.7]} 48... g4 {[%clk 0:00:19.9]} 49. Rd8 {[%clk 0:00:14.3]} 49...
Rf4 {[%clk 0:00:18.7]} 50. d6 {[%clk 0:00:14.3]} 50... Rad4 {[%clk 0:00:18.4]}
51. d7 {[%clk 0:00:14.2]} 51... Kf5 {[%clk 0:00:18.7]} 52. Rc2 {[%clk
0:00:13.6]} 52... c4 {[%clk 0:00:17.7]} 53. a4 {[%clk 0:00:13.9]} 53... Rf3
{[%clk 0:00:17.3]} 54. a5 {[%clk 0:00:13.4]} 54... c3 {[%clk 0:00:17]} 55. Rd2
{[%clk 0:00:01.6]} 55... Rxd2+ {[%clk 0:00:16.8]} 0-1